fUSD/lending_fUSD_20251117
["ID","MTS","AMOUNT","RATE_DAILY","PERIOD"]
[394166320,1763338264133,-151.0,0.000398,120]
[394166321,1763338264143,-151.0,0.000398,120]
[394166322,1763338264153,-619.688959,0.000398,120]
[394166323,1763338264162,-1471.1498,0.000398,120]
[394166324,1763338264171,-151.0,0.000398,120]
[394166325,1763338264181,-619.688959,0.000398,120]
[394166326,1763338264191,-1471.1498,0.000398,120]
[394166327,1763338264200,-619.688959,0.000398,120]
[394166328,1763338264210,-1471.1498,0.000398,120]
[394166329,1763338264219,-619.688959,0.000398,120]
[394166330,1763338264229,-1471.1498,0.000398,120]
[394166331,1763338264239,-151.0,0.000398,30]
[394166332,1763338264248,-210.48475,0.000398,120]
[394166333,1763338264259,-210.48475,0.000398,120]
[394166334,1763338264268,-165.413082,0.000398,120]
[394166335,1763338264278,-210.48475,0.000398,120]
[394166336,1763338264287,-151.0,0.000398,120]
[394166337,1763338264297,-151.0,0.000398,120]
[394166338,1763338264307,-210.48475,0.000398,120]
[394166339,1763338264316,-151.0,0.000398,120]
[394166340,1763338264326,-151.0,0.000398,120]
[394166341,1763338264336,-200.0,0.00039805,2]
[394166342,1763338264345,-200.0,0.00039805,2]
[394166343,1763338264355,-200.0,0.00039805,2]
[394166344,1763338264365,-200.0,0.00039805,2]
[394166345,1763338264374,-200.0,0.00039805,2]
[394166346,1763338264384,-200.0,0.00039805,2]
[394166347,1763338264392,-200.0,0.00039805,2]
[394166348,1763338264572,-200.0,0.00039805,2]
[394166349,1763338264581,-200.0,0.00039805,2]
[394166350,1763338264590,-200.0,0.00039805,2]
[394166351,1763338264600,-200.0,0.00039805,2]
[394166352,1763338264610,-200.0,0.00039805,2]
[394166353,1763338264620,-200.0,0.00039805,2]
[394166354,1763338264630,-200.0,0.00039805,2]
[394166355,1763338264640,-200.0,0.00039805,2]
[394166356,1763338264650,-200.0,0.00039805,2]
[394166357,1763338264660,-200.0,0.00039805,2]
[394166358,1763338264670,-200.0,0.00039805,2]
[394166359,1763338264683,-200.0,0.00039805,2]
[394166360,1763338264693,-200.0,0.00039805,2]
[394166361,1763338264703,-200.0,0.00039805,2]
[394166362,1763338264713,-200.0,0.00039805,2]
[394166363,1763338264723,-200.0,0.00039805,2]
[394166364,1763338264732,-200.0,0.00039805,2]
[394166365,1763338264742,-200.0,0.00039805,2]
[394166366,1763338264756,-200.0,0.00039805,2]
[394166367,1763338264765,-200.0,0.00039805,2]
[394166368,1763338264774,-200.0,0.00039805,2]
[394166369,1763338264783,-200.0,0.00039805,2]
[394166370,1763338264792,-200.0,0.00039805,2]
[394166371,1763338264803,-200.0,0.00039805,2]
[394166372,1763338264812,-200.0,0.00039805,2]
[394166373,1763338264822,-200.0,0.00039805,2]
[394166374,1763338264831,-200.0,0.00039805,2]
[394166375,1763338264840,-200.0,0.00039805,2]
[394166376,1763338264850,-305.0,0.00039805,2]
[394166377,1763338264860,-280.0,0.00039805,13]
[394166378,1763338264871,-160.0,0.00039861,2]
[394166379,1763338264880,-160.0,0.00039861,2]
[394166380,1763338264889,-160.0,0.00039861,2]
[394166381,1763338264898,-160.0,0.00039861,2]
[394166382,1763338264908,-160.0,0.00039861,2]
[394166383,1763338264917,-160.0,0.00039861,2]
[394166384,1763338264928,-160.0,0.00039861,2]
[394166385,1763338264938,-160.0,0.00039861,2]
[394166386,1763338264947,-160.0,0.00039861,2]
[394166387,1763338264956,-160.0,0.00039861,2]
[394166388,1763338264966,-160.0,0.00039861,2]
[394166389,1763338264975,-160.0,0.00039861,2]
[394166390,1763338264984,-160.0,0.00039861,2]
[394166391,1763338264994,-160.0,0.00039861,2]
[394166392,1763338265005,-621.0,0.00039864,2]
[394166393,1763338265015,-621.0,0.00039864,2]
[394166394,1763338265024,-621.0,0.00039864,2]
[394166395,1763338265034,-621.0,0.00039864,2]
[394166396,1763338265044,-621.0,0.00039864,2]
[394166397,1763338265053,-621.0,0.00039864,2]
[394166398,1763338265061,-163.0,0.00039871,90]
[394166399,1763338265071,-152.25,0.00039878,120]
[394166400,1763338265081,-155.34,0.00039879,120]
[394166401,1763338265095,-152.61,0.00039885,120]
[394166402,1763338265105,-16612.56030708,0.00039888,2]
[394166403,1763338265115,-995.65004,0.00039888,30]
[394166404,1763338265124,-166.0,0.00039888,2]
[394166405,1763338265134,-166.0,0.00039888,2]
[394166406,1763338265143,-166.0,0.00039888,2]
[394166407,1763338265154,-166.0,0.00039888,2]
[394166408,1763338265164,-166.0,0.00039888,2]
[394166409,1763338265174,-166.0,0.00039888,2]
[394166410,1763338265184,-166.0,0.00039888,2]
[394166411,1763338265193,-166.0,0.00039888,2]
[394166412,1763338265202,-166.0,0.00039888,2]
[394166413,1763338265211,-166.0,0.00039888,2]
[394166414,1763338265221,-166.0,0.00039888,2]
[394166415,1763338265230,-166.0,0.00039888,2]
[394166416,1763338265240,-166.0,0.00039888,2]
[394166417,1763338265249,-166.0,0.00039888,2]
[394166418,1763338265258,-783.0,0.00039891,2]
[394166419,1763338265267,-783.0,0.00039891,2]
[394166420,1763338265277,-783.0,0.00039891,2]
[394166421,1763338265287,-783.0,0.00039891,2]
[394166422,1763338265297,-783.0,0.00039891,2]
[394166423,1763338265307,-783.0,0.00039891,2]
[394166424,1763338265317,-173.12451432,0.000399,120]
[394166425,1763338265327,-613.41878555,0.000399,120]
[394166426,1763338265338,-613.41878541,0.000399,120]
[394166427,1763338265348,-613.41878541,0.000399,120]
[394166428,1763338265359,-613.41878541,0.000399,120]
[394166429,1763338265368,-613.41878541,0.000399,120]
[394166430,1763338265378,-193.0,0.00039915,2]
[394166431,1763338265387,-193.0,0.00039915,2]
[394166432,1763338265397,-193.0,0.00039915,2]
[394166433,1763338265407,-193.0,0.00039915,2]
[394166434,1763338265416,-193.0,0.00039915,2]
[394166435,1763338265426,-193.0,0.00039915,2]
[394166436,1763338265435,-193.0,0.00039915,2]
[394166437,1763338265445,-193.0,0.00039915,2]
[394166438,1763338265455,-193.0,0.00039915,2]
[394166439,1763338265465,-193.0,0.00039915,2]
[394166440,1763338265475,-193.0,0.00039915,2]
[394166441,1763338265484,-193.0,0.00039915,2]
[394166442,1763338265495,-193.0,0.00039915,2]
[394166443,1763338265505,-193.0,0.00039915,2]
[394166444,1763338265515,-825.0,0.00039917,2]
[394166445,1763338265525,-825.0,0.00039917,2]
[394166446,1763338265535,-825.0,0.00039917,2]
[394166447,1763338265546,-825.0,0.00039917,2]
[394166448,1763338265555,-825.0,0.00039917,2]
[394166449,1763338265565,-825.0,0.00039917,2]
[394166450,1763338265574,-4161.937,0.00039949,56]
[394166451,1763338265584,-152.25,0.00039978,120]
[394166452,1763338265593,-155.34086468,0.00039979,120]
[394166453,1763338265603,-152.61,0.00039985,120]
[394166454,1763338265612,-49807.90297878,0.0003999,2]
[394166455,1763338265622,-150.0,0.00039992,7]
[394166456,1763338265633,-8001.46171312,0.00039999,2]
[394166457,1763338265643,-294.5402,0.0004,120]
[394166458,1763338265653,-166.0,0.0004,30]
[394166459,1763338265662,-505.42176773,0.0004,30]
[394166460,1763338265672,-2299.999999,0.0004,2]
[394166461,1763338265685,-421.39105876,0.0004,30]
[394166462,1763338265695,-2722.81560857,0.0004,30]
[394166463,1763338265706,-159.0,0.0004,30]
[394166464,1763338265718,-211.03128444,0.0004,2]
[394166465,1763338265728,-1350.23853986,0.0004,120]
[394166466,1763338265737,-500.0000001,0.0004,120]
[394166467,1763338265747,-1632.015642,0.0004,120]
[394166468,1763338265759,-343.49514312,0.0004,120]
[394166469,1763338265769,-415.0,0.0004,30]
[394166470,1763338265778,-150.0,0.0004,60]
[394166471,1763338265787,-245.9,0.0004,30]
[394166472,1763338265797,-1000.0,0.0004,120]
[394166473,1763338265806,-160.76836195,0.0004,3]
[394166474,1763338265815,-168.00773382,0.0004,3]
[394166475,1763338265824,-3990.69,0.0004,2]
[394166476,1763338265834,-8339.4510262,0.0004,10]
[394166477,1763338265843,-479.06402154,0.0004,10]
[394166478,1763338265854,-1000.0,0.0004,120]
[394166479,1763338265864,-1006.13,0.0004,2]
[394166480,1763338265873,-1006.0,0.0004,30]
[394166481,1763338265884,-479.06402154,0.0004,120]
[394166482,1763338265893,-395.77,0.00040062,60]
[394166483,1763338265903,-152.25,0.00040078,120]
[394166484,1763338265912,-152.61,0.00040085,120]
[394166485,1763338265922,-995.65004,0.00040088,30]
[394166486,1763338265932,-166.70982748,0.000401,120]
[394166487,1763338265942,-152.25,0.00040178,120]
[394166488,1763338265951,-170.5392958,0.00040182,30]
[394166489,1763338265961,-152.61,0.00040185,120]
[394166490,1763338265971,-1626.0,0.000402,7]
[394166491,1763338265981,-150.0,0.00040204,7]
[394166492,1763338265991,-3990.69,0.00040273,2]
[394166493,1763338266001,-1006.13,0.00040273,2]
[394166494,1763338266010,-152.25,0.00040278,120]
[394166495,1763338266019,-152.61,0.00040285,120]
[394166496,1763338266028,-995.65004,0.00040288,30]
[394166497,1763338266037,-371.53447534,0.00040356,5]
[394166498,1763338266047,-240.18455869,0.00040356,5]
[394166499,1763338266056,-300.0,0.00040372,2]
[394166500,1763338266077,-152.25,0.00040378,120]
[394166501,1763338266090,-152.61883835,0.00040385,120]
[394166502,1763338266103,-733.05,0.000404,30]
[394166503,1763338266120,-500.0,0.000404,14]
[394166504,1763338266136,-300.0,0.00040401,2]
[394166505,1763338266152,-300.0,0.00040428,2]
[394166506,1763338266165,-510.29,0.0004044,7]
[394166507,1763338266178,-300.0,0.00040476,2]
[394166508,1763338266194,-152.25,0.00040478,120]
[394166509,1763338266209,-300.0,0.00040479,2]
[394166510,1763338266225,-995.65004,0.00040488,30]
[394166511,1763338266240,-232.04716206,0.00040489,2]
[394166512,1763338266257,-150.0,0.00040497,7]
[394166513,1763338266273,-2002.58,0.000405,2]
[394166514,1763338266288,-2000.0,0.000405,2]
[394166515,1763338266303,-2000.0,0.000405,2]
[394166516,1763338266320,-2000.0,0.000405,2]
[394166517,1763338266334,-2006.97,0.000405,2]
[394166518,1763338266347,-1155.91447324,0.000405,120]
[394166519,1763338266360,-500.0,0.000405,14]
[394166520,1763338266378,-1186.2116062,0.000405,120]
[394166521,1763338266390,-300.0,0.00040511,2]
[394166522,1763338266404,-166.70982748,0.00040513,120]
[394166523,1763338266420,-300.0,0.00040526,2]
[394166524,1763338266434,-300.0,0.00040529,2]
[394166525,1763338266447,-800.0,0.0004054,13]
[394166526,1763338266461,-800.0,0.0004054,13]
[394166527,1763338266474,-800.0,0.0004054,13]
[394166528,1763338266487,-800.0,0.0004054,13]
[394166529,1763338266500,-800.0,0.0004054,13]
[394166530,1763338266514,-800.0,0.0004054,13]
[394166531,1763338266527,-800.0,0.0004054,13]
[394166532,1763338266541,-800.0,0.0004054,13]
[394166533,1763338266553,-800.0,0.0004054,13]
[394166534,1763338266567,-800.0,0.0004054,13]
[394166535,1763338266579,-800.0,0.0004054,13]
[394166536,1763338266592,-800.0,0.0004054,13]
[394166537,1763338266605,-413.0,0.0004054,13]
[394166538,1763338266618,-3990.69,0.00040547,2]
[394166539,1763338266631,-1006.13,0.00040547,2]
[394166540,1763338266649,-150.0,0.00040551,7]
[394166541,1763338266662,-300.0,0.00040556,2]
[394166542,1763338266677,-168.0,0.00040576,2]
[394166543,1763338266690,-152.25,0.00040578,120]
[394166544,1763338266703,-300.0,0.00040588,2]
[394166545,1763338266718,-300.0,0.00040589,2]
[394166546,1763338266731,-300.0,0.00040598,2]
[394166547,1763338266744,-500.0,0.000406,14]
[394166548,1763338266758,-300.0,0.00040614,2]
[394166549,1763338266771,-300.0,0.00040618,2]
[394166550,1763338266785,-300.0,0.00040619,2]
[394166551,1763338266798,-300.0,0.00040622,2]
[394166552,1763338266811,-162.64878142,0.00040626,2]
[394166553,1763338266824,-1000.0,0.00040637,7]
[394166554,1763338266839,-300.0,0.00040658,2]
[394166555,1763338266851,-300.0,0.00040661,2]
[394166556,1763338266866,-300.0,0.00040677,2]
[394166557,1763338266879,-300.0,0.00040677,2]
[394166558,1763338266892,-152.25,0.00040678,120]
[394166559,1763338266906,-300.0,0.00040679,2]
[394166560,1763338266919,-995.65004,0.00040688,30]
[394166561,1763338266933,-300.0,0.00040691,2]
[394166562,1763338266946,-300.0,0.00040697,2]
[394166563,1763338266958,-500.0,0.000407,14]
[394166564,1763338266971,-1000.0,0.00040703,7]
[394166565,1763338266984,-300.0,0.00040705,2]
[394166566,1763338266996,-300.0,0.00040717,2]
[394166567,1763338267009,-300.0,0.00040718,2]
[394166568,1763338267023,-300.0,0.00040729,2]
[394166569,1763338267035,-300.0,0.00040736,2]
[394166570,1763338267049,-1000.0,0.00040738,7]
[394166571,1763338267063,-300.0,0.0004074,2]
[394166572,1763338267076,-300.0,0.00040745,2]
[394166573,1763338267089,-300.0,0.00040746,2]
[394166574,1763338267102,-300.0,0.00040759,2]
[394166575,1763338267116,-300.0,0.00040759,2]
[394166576,1763338267129,-300.0,0.00040771,2]
[394166577,1763338267143,-300.0,0.00040771,2]
[394166578,1763338267155,-152.25,0.00040778,120]
[394166579,1763338267168,-300.0,0.0004079,2]
[394166580,1763338267181,-300.0,0.00040793,2]
[394166581,1763338267194,-4579.6505027,0.000408,30]
[394166582,1763338267207,-2000.0,0.000408,2]
[394166583,1763338267220,-300.0,0.000408,2]
[394166584,1763338267233,-864.0,0.000408,14]
[394166585,1763338267245,-300.0,0.00040802,2]
[394166586,1763338267260,-300.0,0.00040808,2]
[394166587,1763338267273,-300.0,0.00040816,2]
[394166588,1763338267286,-300.0,0.00040818,2]
[394166589,1763338267299,-1000.0,0.0004082,7]
[394166590,1763338267312,-3990.69,0.00040821,2]
[394166591,1763338267325,-1006.13,0.00040821,2]
[394166592,1763338267338,-300.0,0.00040824,2]
[394166593,1763338267350,-300.0,0.00040825,2]
[394166594,1763338267362,-300.0,0.00040829,2]
[394166595,1763338267375,-1000.0,0.00040833,7]
[394166596,1763338267387,-2500.0,0.00040833,14]
[394166597,1763338267399,-300.0,0.00040837,2]
[394166598,1763338267412,-384.0,0.00040838,90]
[394166599,1763338267425,-300.0,0.00040839,2]
[394166600,1763338267438,-2500.0,0.00040842,14]
[394166601,1763338267450,-150.0,0.00040843,7]
[394166602,1763338267464,-300.0,0.00040844,2]
[394166603,1763338267477,-2500.0,0.00040851,14]
[394166604,1763338267493,-300.0,0.00040851,2]
[394166605,1763338267511,-1000.0,0.00040856,7]
[394166606,1763338267523,-1000.0,0.00040859,2]
[394166607,1763338267536,-2500.0,0.0004086,14]
[394166608,1763338267548,-300.0,0.00040867,2]
[394166609,1763338267561,-2500.0,0.00040869,14]
[394166610,1763338267574,-300.0,0.00040877,2]
[394166611,1763338267587,-2500.0,0.00040877,14]
[394166612,1763338267600,-152.25,0.00040878,120]
[394166613,1763338267613,-300.0,0.0004088,2]
[394166614,1763338267626,-300.0,0.00040885,2]
[394166615,1763338267639,-2500.0,0.00040886,14]
[394166616,1763338267651,-995.65004,0.00040888,30]
[394166617,1763338267663,-1000.0,0.00040892,7]
[394166618,1763338267677,-2500.0,0.00040895,14]
[394166619,1763338267691,-1000.0,0.00040896,7]
[394166620,1763338267704,-300.0,0.00040899,2]
[394166621,1763338267718,-1000.0,0.00040902,7]
[394166622,1763338267731,-2500.0,0.00040904,14]
[394166623,1763338267741,-2500.0,0.00040913,14]
[394166624,1763338267750,-1000.0,0.00040913,7]
[394166625,1763338267765,-150.0,0.00040917,7]
[394166626,1763338267775,-2500.0,0.00040921,14]
[394166627,1763338267784,-152.0,0.00040924,8]
[394166628,1763338267801,-150.0,0.00040924,7]
[394166629,1763338267811,-166.70982748,0.00040927,120]
[394166630,1763338267820,-150.0,0.00040927,7]
[394166631,1763338267830,-2500.0,0.0004093,14]
[394166632,1763338267839,-1000.0,0.00040933,7]
[394166633,1763338267848,-300.0,0.00040933,2]
[394166634,1763338267856,-1000.0,0.00040934,7]
[394166635,1763338267866,-1000.0,0.00040938,7]
[394166636,1763338267875,-300.0,0.00040939,2]
[394166637,1763338267885,-2500.0,0.00040939,14]
[394166638,1763338267894,-150.0,0.00040941,7]
[394166639,1763338267904,-1000.0,0.00040941,7]
[394166640,1763338267914,-2500.0,0.00040948,14]
[394166641,1763338267923,-300.0,0.0004095,2]
[394166642,1763338267933,-2500.0,0.00040957,14]
[394166643,1763338267942,-168.0,0.00040958,2]
[394166644,1763338267952,-900.0,0.00040959,2]
[394166645,1763338267962,-300.0,0.00040959,2]
[394166646,1763338267971,-2500.0,0.00040965,14]
[394166647,1763338267981,-1000.0,0.0004097,120]
[394166648,1763338267992,-2500.0,0.00040974,14]
[394166649,1763338268002,-152.25,0.00040978,120]
[394166650,1763338268013,-2500.0,0.00040983,14]
[394166651,1763338268022,-150.0,0.00040988,7]
[394166652,1763338268032,-477.68023565,0.00041,30]
[394166653,1763338268042,-166.0,0.00041,30]
[394166654,1763338268386,-100000.0,0.00041,30]
[394166655,1763338268464,-220.11,0.00041,120]
[394166656,1763338268492,-159.0,0.00041,30]
[394166657,1763338268514,-158.0,0.00041,2]
[394166658,1763338268524,-210.0,0.00041,30]
[394166659,1763338268535,-1152.36375515,0.00041,30]
[394166660,1763338268545,-415.0,0.00041,30]
[394166661,1763338268555,-150.0,0.00041,60]
[394166662,1763338268565,-2000.0,0.00041,2]
[394166663,1763338268575,-1000.0,0.00041,120]
[394166664,1763338268585,-377.0,0.00041,120]
[394166665,1763338268595,-1006.0,0.00041,30]
[394166666,1763338268605,-1000.0,0.00041003,7]
[394166667,1763338268615,-1000.0,0.00041011,7]
[394166668,1763338268625,-300.0,0.00041011,2]
[394166669,1763338268634,-291.93441405,0.00041027,7]
[394166670,1763338268645,-2500.0,0.00041029,14]
[394166671,1763338268654,-510.850769,0.00041034,120]
[394166672,1763338268664,-2089.002297,0.00041034,120]
[394166673,1763338268677,-512.116434,0.00041034,120]
[394166674,1763338268687,-500.0,0.00041034,120]
[394166675,1763338268698,-300.0,0.00041036,2]
[394166676,1763338268708,-300.0,0.00041036,2]
[394166677,1763338268719,-2500.0,0.00041037,14]
[394166678,1763338268729,-300.0,0.0004104,2]
[394166679,1763338268739,-300.0,0.00041045,2]
[394166680,1763338268750,-1000.0,0.00041046,7]
[394166681,1763338268760,-300.0,0.00041048,2]
[394166682,1763338268770,-300.0,0.00041049,2]
[394166683,1763338268780,-300.0,0.00041055,2]
[394166684,1763338268790,-300.0,0.00041058,2]
[394166685,1763338268800,-900.0,0.00041059,2]
[394166686,1763338268810,-300.0,0.00041065,2]
[394166687,1763338268819,-300.0,0.00041066,2]
[394166688,1763338268829,-182.68541875,0.00041068,22]
[394166689,1763338268839,-1000.0,0.00041073,7]
[394166690,1763338268849,-152.25,0.00041078,120]
[394166691,1763338268859,-168.0,0.00041079,2]
[394166692,1763338268869,-300.0,0.00041079,2]
[394166693,1763338268878,-168.0,0.00041084,2]
[394166694,1763338268888,-300.0,0.00041086,2]
[394166695,1763338268897,-995.65004,0.00041088,30]
[394166696,1763338268907,-3990.69,0.00041095,2]
[394166697,1763338268916,-1006.13,0.00041095,2]
[394166698,1763338268926,-500.0,0.00041096,120]
[394166699,1763338268935,-300.0,0.00041096,120]
[394166700,1763338268944,-248.68,0.00041096,120]
[394166701,1763338268954,-216.01,0.00041096,120]
[394166702,1763338268964,-153.88,0.00041096,2]
[394166703,1763338268973,-802.959665,0.00041096,45]
[394166704,1763338268983,-802.959665,0.00041096,45]
[394166705,1763338268993,-802.959665,0.00041096,45]
[394166706,1763338269002,-802.959665,0.00041096,45]
[394166707,1763338269014,-802.959665,0.00041096,45]
[394166708,1763338269024,-802.959665,0.00041096,45]
[394166709,1763338269033,-802.959665,0.00041096,45]
[394166710,1763338269043,-802.959665,0.00041096,45]
[394166711,1763338269053,-802.959665,0.00041096,45]
[394166712,1763338269063,-802.959665,0.00041096,45]
[394166713,1763338269072,-802.959665,0.00041096,45]
[394166714,1763338269082,-802.959665,0.00041096,45]
[394166715,1763338269092,-802.959665,0.00041096,45]
[394166716,1763338269101,-802.959665,0.00041096,45]
[394166717,1763338269111,-802.959665,0.00041096,45]
[394166718,1763338269120,-802.959665,0.00041096,45]
[394166719,1763338269129,-150.0,0.00041096,6]
[394166720,1763338269139,-300.0,0.00041096,30]
[394166721,1763338269148,-741.73542307,0.000411,60]
[394166722,1763338269158,-500.0,0.000411,2]
[394166723,1763338269168,-1200.0,0.000411,2]
[394166724,1763338269179,-650.0,0.000411,2]
[394166725,1763338269188,-733.05,0.000411,30]
[394166726,1763338269198,-1058.64604221,0.000411,2]
[394166727,1763338269208,-300.0,0.00041109,2]
[394166728,1763338269218,-1000.0,0.00041111,14]
[394166729,1763338269227,-300.0,0.00041127,2]
[394166730,1763338269237,-300.0,0.00041133,2]
[394166731,1763338269247,-384.0,0.00041137,90]
[394166732,1763338269257,-150.0,0.00041151,6]
[394166733,1763338269267,-300.0,0.00041151,30]
[394166734,1763338269276,-300.0,0.00041155,2]
[394166735,1763338269286,-900.0,0.00041159,2]
[394166736,1763338269296,-1000.0,0.00041159,14]
[394166737,1763338269305,-1000.0,0.00041178,14]
[394166738,1763338269316,-274.09444146,0.00041187,14]
[394166739,1763338269325,-1000.0,0.00041189,14]
[394166740,1763338269334,-150.0,0.00041189,14]
[394166741,1763338269344,-300.0,0.00041191,2]
[394166742,1763338269354,-150.0,0.00041194,60]
[394166743,1763338269363,-150.0,0.00041194,60]
[394166744,1763338269373,-248.01731073,0.00041206,6]
[394166745,1763338269382,-300.0,0.00041206,30]
[394166746,1763338269391,-1000.0,0.00041206,14]
[394166747,1763338269401,-300.0,0.00041217,2]
[394166748,1763338269410,-787.07299524,0.00041226,120]
[394166749,1763338269420,-156.0,0.0004123,2]
[394166750,1763338269430,-2000.0,0.00041233,3]
[394166751,1763338269439,-2000.0,0.00041233,3]
[394166752,1763338269449,-2000.0,0.00041233,3]
[394166753,1763338269459,-1000.0,0.00041233,14]
[394166754,1763338269468,-1000.0,0.00041249,14]
[394166755,1763338269478,-300.0,0.00041258,2]
[394166756,1763338269487,-900.0,0.00041259,2]
[394166757,1763338269497,-151.0,0.00041259,120]
[394166758,1763338269506,-151.0,0.00041259,120]
[394166759,1763338269515,-151.0,0.00041259,120]
[394166760,1763338269525,-151.0,0.00041259,120]
[394166761,1763338269535,-151.0,0.00041259,120]
[394166762,1763338269545,-252.960086,0.00041259,120]
[394166763,1763338269554,-151.0,0.00041259,120]
[394166764,1763338269564,-151.0,0.00041259,120]
[394166765,1763338269574,-151.0,0.00041259,120]
[394166766,1763338269584,-174.523007,0.00041259,120]
[394166767,1763338269594,-151.0,0.00041259,120]
[394166768,1763338269604,-151.0,0.00041259,120]
[394166769,1763338269614,-151.0,0.00041259,120]
[394166770,1763338269623,-167.252103,0.00041259,120]
[394166771,1763338269633,-320.063734,0.00041259,120]
[394166772,1763338269643,-320.063734,0.00041259,120]
[394166773,1763338269652,-320.063734,0.00041259,120]
[394166774,1763338269662,-320.063726,0.00041259,120]
[394166775,1763338269673,-168.0,0.00041259,2]
[394166776,1763338269686,-300.0,0.0004126,30]
[394166777,1763338269695,-1000.0,0.00041267,14]
[394166778,1763338269705,-1000.0,0.00041278,14]
[394166779,1763338269714,-151.0,0.00041278,120]
[394166780,1763338269726,-151.0,0.00041278,120]
[394166781,1763338269735,-151.0,0.00041278,120]
[394166782,1763338269745,-248.969081,0.00041278,120]
[394166783,1763338269757,-151.0,0.00041278,120]
[394166784,1763338269766,-151.0,0.00041278,120]
[394166785,1763338269776,-331.436966,0.00041278,120]
[394166786,1763338269786,-151.0,0.00041278,120]
[394166787,1763338269795,-331.436966,0.00041278,120]
[394166788,1763338269805,-331.436966,0.00041278,120]
[394166789,1763338269814,-331.436957,0.00041278,120]
[394166790,1763338269824,-198.244511,0.00041278,120]
[394166791,1763338269834,-151.0,0.00041278,120]
[394166792,1763338269843,-198.244511,0.00041278,120]
[394166793,1763338269853,-198.244511,0.00041278,120]
[394166794,1763338269863,-198.244508,0.00041278,120]
[394166795,1763338269873,-151.0,0.00041278,120]
[394166796,1763338269883,-151.0,0.00041278,120]
[394166797,1763338269892,-151.0,0.00041278,120]
[394166798,1763338269902,-301.449566,0.00041278,120]
[394166799,1763338269911,-526.139129,0.00041278,120]
[394166800,1763338269921,-526.139129,0.00041278,120]
[394166801,1763338269930,-526.139129,0.00041278,120]
[394166802,1763338269939,-151.0,0.00041278,120]
[394166803,1763338269948,-526.139127,0.00041278,120]
[394166804,1763338269957,-151.0,0.00041278,120]
[394166805,1763338269967,-151.0,0.00041278,120]
[394166806,1763338269976,-991.526894,0.00041278,30]
[394166807,1763338269986,-151.0,0.00041278,120]
[394166808,1763338269996,-991.526894,0.00041278,30]
[394166809,1763338270006,-280.790532,0.00041278,120]
[394166810,1763338270015,-151.0,0.00041278,120]
[394166811,1763338270024,-991.526894,0.00041278,30]
[394166812,1763338270036,-280.790532,0.00041278,120]
[394166813,1763338270048,-151.0,0.00041278,120]
[394166814,1763338270058,-991.526897,0.00041278,30]
[394166815,1763338270067,-280.790532,0.00041278,120]
[394166816,1763338270077,-280.790526,0.00041278,120]
[394166817,1763338270087,-161.544794,0.00041278,120]
[394166818,1763338270097,-252.113073,0.00041278,120]
[394166819,1763338270107,-161.544794,0.00041278,120]